bitfinex/quotes_SOLUSD_20241125
["timestamp","ask_amount","ask_price","bid_price","bid_amount"]
[1732562904053,0.4764682,239.48,239.43,18.2540026]
[1732562904667,0.4764682,239.48,239.44,18.2540026]
[1732562905047,0.4764682,239.48,239.46,18.2540026]
[1732562905248,0.4764682,239.48,239.47,18.2540026]
[1732562907273,0.4764682,239.48,239.47,42.0308866]
[1732562907446,0.4764682,239.48,239.47,18.2540026]
[1732562910366,0.4764682,239.48,239.47,42.0308866]
[1732562910972,0.4764682,239.48,239.47,18.2540026]
[1732562911166,0.4764682,239.48,239.44,18.2540026]
[1732562911374,0.4764682,239.48,239.39,6.0855]
[1732562911375,0.4764682,239.48,239.42,18.2540026]
[1732562911681,0.4764682,239.48,239.4,18.2540026]
[1732562911870,0.4764682,239.48,239.37,18.2540026]
[1732562912082,0.4764682,239.48,239.35,18.2540026]
[1732562912259,0.4764682,239.48,239.36,18.2540026]
[1732562912460,0.4764682,239.48,239.37,18.2540026]
[1732562912672,0.4764682,239.48,239.38,18.2540026]
[1732562913190,0.4764682,239.48,239.43,18.2540026]
[1732562913370,0.4764682,239.48,239.42,18.2540026]
[1732562913571,0.4764682,239.48,239.41,18.2540026]
[1732562913761,0.4764682,239.48,239.42,18.2540026]
[1732562914361,0.4764682,239.48,239.43,18.2540026]
[1732562914572,0.4764682,239.48,239.44,18.2540026]
[1732562915069,0.4764682,239.48,239.47,42.0308866]
[1732562918677,15.52,239.61,239.52,134.2235318]
[1732562918983,15.52,239.61,239.52,18.2540026]
[1732562919374,15.52,239.61,239.5,18.2540026]
[1732562919893,15.52,239.61,239.56,18.2540026]
[1732562920271,16.2143,239.68,239.58,18.2540026]
[1732562920470,16.2143,239.68,239.56,18.2540026]
[1732562922792,16.2143,239.68,239.57,18.2540026]
[1732562923090,16.2143,239.68,239.58,18.2540026]
[1732562923275,16.2143,239.68,239.57,18.2540026]
[1732562923680,16.2143,239.68,239.58,18.2540026]
[1732562923880,16.2143,239.68,239.57,18.2540026]
[1732562924295,16.2143,239.68,239.59,18.2540026]
[1732562924593,16.2143,239.68,239.58,18.2540026]
[1732562925492,16.2143,239.68,239.56,18.2540026]
[1732562925987,16.2143,239.68,239.54,18.2540026]
[1732562926368,16.2143,239.68,239.55,18.2540026]
[1732562926573,16.2143,239.68,239.56,18.2540026]
[1732562926880,16.2143,239.68,239.57,18.2540026]
[1732562927389,16.2143,239.68,239.51,23.776884]
[1732562927390,16.2143,239.68,239.59,18.2540026]
[1732562927597,16.2143,239.68,239.6,18.2540026]
[1732562928182,16.2143,239.68,239.56,18.2540026]
[1732562928382,0.4764682,239.72,239.62,18.2540026]
[1732562928593,0.4764682,239.72,239.64,18.2540026]
[1732562929196,0.4764682,239.72,239.63,18.2540026]
[1732562930094,0.4764682,239.72,239.66,18.2540026]
[1732562930298,0.4764682,239.72,239.68,18.2540026]
[1732562931102,0.4764682,239.72,239.66,18.2540026]
[1732562931276,0.4764682,239.72,239.68,18.2540026]
[1732562931777,0.4764682,239.72,239.69,18.2540026]
[1732562931976,0.4764682,239.72,239.7,18.2540026]
[1732562932193,0.4764682,239.72,239.71,18.2540026]
[1732562938787,0.4764682,239.72,239.71,47.69786455]
[1732562939516,0.4764682,239.72,239.71,51.86956455]
[1732562939812,0.4764682,239.72,239.71,51.99505455]
[1732562940383,0.4764682,239.72,239.71,18.2540026]
[1732562945290,0.4764682,239.72,239.71,50.3895866]
[1732562946316,0.4764682,239.72,239.71,11.27823925]
[1732562949616,30.4764682,239.72,239.71,11.27823925]
[1732562950115,30.4764682,239.72,239.71,43.41382325]
[1732562950298,30.4764682,239.72,239.71,44.68704511]
[1732562950700,15.3599,239.82,239.72,5.56584298]
[1732562950915,15.3599,239.82,239.81,11.27823925]
[1732562952098,20.0,239.87,239.81,11.27823925]
[1732562952701,16.3595,239.9,239.83,11.27823925]
[1732562952922,16.3595,239.9,239.86,11.27823925]
[1732562953396,16.3595,239.9,239.88,11.27823925]
[1732562954213,15.4883,239.95,239.89,11.27823925]
[1732562954518,15.4883,239.95,239.91,11.27823925]
[1732562954688,15.4883,239.95,239.87,11.27823925]
[1732562955803,15.4883,239.95,239.82,23.776884]
[1732562956009,15.4883,239.95,239.87,11.27823925]
[1732562956513,15.4883,239.95,239.89,11.27823925]
[1732562957502,15.4883,239.95,239.88,11.27823925]
[1732562960213,15.4883,239.95,239.9,11.27823925]
[1732562960810,15.4883,239.95,239.88,31.27823925]
[1732562961124,15.4883,239.95,239.86,11.27823925]
[1732562961314,15.4883,239.95,239.88,11.27823925]
[1732562961517,15.4883,239.95,239.9,11.27823925]
[1732562962114,15.4883,239.95,239.88,31.27823925]
[1732562962325,15.4883,239.95,239.89,20.0]
[1732562962527,15.4883,239.95,239.88,11.27823925]
[1732562963024,0.4764682,239.97,239.92,11.27823925]
[1732562963525,0.4764682,239.97,239.94,11.27823925]
[1732562964234,0.4764682,239.97,239.96,35.05512325]
[1732562966005,0.4764682,239.97,239.96,11.27823925]
[1732562967822,0.4764682,239.97,239.92,11.27823925]
[1732562968631,0.4764682,239.97,239.91,11.27823925]
[1732562970040,0.4764682,239.97,239.89,11.27823925]
[1732562970216,0.4764682,239.97,239.9,4.187]
[1732562970415,0.4764682,239.97,239.86,6.4186]
[1732562970416,0.4764682,239.97,239.87,11.27823925]
[1732562972011,0.4764682,239.97,239.83,11.27823925]
[1732562972714,0.4764682,239.97,239.84,11.27823925]
[1732562973123,30.0,239.96,239.84,11.27823925]
[1732562973376,15.2485,239.95,239.84,11.27823925]
[1732562973511,15.2485,239.95,239.82,11.27823925]
[1732562974113,30.0,239.94,239.82,11.27823925]
[1732562974632,30.0,239.94,239.84,11.27823925]
[1732562976735,30.0,239.94,239.83,23.776884]
[1732562977541,30.0,239.94,239.86,20.0]
[1732562977713,30.0,239.94,239.84,11.27823925]
[1732562980021,30.0,239.94,239.82,11.27823925]
[1732562980337,30.0,239.94,239.83,20.0]
[1732562980543,30.0,239.94,239.82,11.27823925]
[1732562980858,30.0,239.94,239.85,20.0]
[1732562982935,30.0,239.94,239.87,11.27823925]
[1732562984141,30.0,239.94,239.86,20.0]
[1732562984640,30.0,239.94,239.88,20.0]
[1732562985536,30.0,239.94,239.89,11.27823925]
[1732562986122,30.0,239.94,239.92,20.0]
[1732562986451,30.0,239.94,239.93,11.27823925]
[1732562986618,30.0,239.94,239.93,35.05512325]
[1732562986818,0.4764682,239.97,239.94,23.776884]
[1732562987014,0.4764682,239.97,239.96,35.05512325]
[1732562987219,30.4764682,239.97,239.96,41.63721289]
[1732562987518,30.4764682,239.97,239.96,35.30610325]
[1732562987947,0.4764682,239.97,239.96,35.30610325]
[1732562988244,0.4764682,239.97,239.96,43.66040325]
[1732562988814,0.4764682,239.97,239.96,39.56640325]
[1732562989040,0.4764682,239.97,239.96,49.748124]
[1732562989249,0.4764682,240.21,239.97,16.66909]
[1732562989424,16.4674,240.18,240.12,11.27823925]
[1732562989623,30.0,240.13,240.09,6.26827631]
[1732562989828,30.0,240.13,240.12,55.05512325]
[1732562990135,0.4764682,240.21,240.12,31.27823925]
[1732562990319,0.4764682,240.21,240.06,4.66297046]
[1732562990522,0.4764682,240.21,240.11,20.0]
[1732562990931,0.4764682,240.21,240.1,11.27823925]
[1732562991135,0.4764682,240.21,240.1,20.0]
[1732562991541,0.4764682,240.21,240.12,20.0]
[1732562992332,0.4764682,240.21,240.03,14.66297046]
[1732562992333,0.4764682,240.21,240.05,11.27823925]
[1732562992538,30.0,240.12,240.09,20.0]
[1732562993325,30.0,240.12,240.06,23.776884]
[1732562994249,30.0,240.12,240.03,11.27823925]
[1732562994758,30.0,240.12,240.07,11.27823925]
[1732562995328,30.0,240.12,240.06,23.776884]
[1732562996231,30.0,240.12,240.09,11.27823925]
[1732562996532,30.0,240.12,240.11,20.0]
[1732562997044,30.0,240.12,240.11,55.05512325]
[1732562997440,0.4764682,240.21,240.11,55.05512325]
[1732562997641,0.4764682,240.21,240.12,23.776884]
[1732562998149,0.4764682,240.21,240.15,11.27823925]
[1732562998360,30.0,240.16,240.15,11.27823925]
[1732562998537,0.4764682,240.21,240.16,23.776884]
[1732562999229,0.4764682,240.21,240.19,20.0]
[1732563000247,0.4764682,240.21,240.1,4.1648]
[1732563000454,30.0,240.18,240.03,16.3616]
[1732563000646,30.0,240.18,240.07,11.27823925]
[1732563000831,30.0,240.18,240.09,11.27823925]
[1732563001030,30.0,240.18,240.11,11.27823925]
[1732563001273,30.0,240.18,240.15,11.27823925]
[1732563001435,0.4764682,240.21,240.17,11.27823925]
[1732563002061,0.4764682,240.21,240.19,11.27823925]
[1732563002853,0.4764682,240.21,240.18,27.963884]
[1732563002854,0.2264682,240.21,240.18,27.963884]
[1732563003059,0.2264682,240.21,240.2,23.776884]
[1732563005836,15.3051,240.32,240.23,20.0]
[1732563006043,15.3051,240.32,240.27,11.27823925]
[1732563006254,30.0,240.28,240.27,11.27823925]
[1732563006458,30.0,240.28,240.25,31.27823925]
[1732563007369,30.0,240.28,240.27,35.05512325]
[1732563007548,15.6761,240.39,240.28,23.776884]
[1732563007755,15.6761,240.39,240.31,11.27823925]
[1732563008055,30.0,240.32,240.31,11.27823925]
[1732563008441,30.0,240.32,240.29,11.27823925]
[1732563008765,30.0,240.32,240.27,11.27823925]
[1732563008938,30.0,240.32,240.28,20.0]
[1732563009142,30.0,240.32,240.3,11.27823925]
[1732563009759,30.0,240.32,240.31,35.05512325]
[1732563010060,15.6316682,240.45,240.34,20.0]
[1732563010365,15.6316682,240.45,240.36,11.27823925]
[1732563010564,30.0,240.37,240.34,31.27823925]
[1732563010744,30.0,240.37,240.34,20.0]
[1732563010946,30.0,240.37,240.33,20.0]
[1732563011258,30.0,240.37,240.31,20.0]
[1732563013045,30.0,240.37,240.32,11.27823925]
[1732563013955,30.0,240.37,240.3,11.27823925]
[1732563014271,30.0,240.37,240.25,11.27823925]
[1732563014443,30.0,240.37,240.23,11.27823925]
[1732563014750,15.5141,240.32,240.19,11.27823925]
[1732563015069,30.0,240.31,240.19,11.27823925]
[1732563015364,30.0,240.31,240.21,11.27823925]
[1732563015563,30.0,240.31,240.2,11.27823925]
[1732563015876,30.0,240.31,240.14,10.5535]
[1732563015877,30.0,240.31,240.21,5.53252101]
[1732563016162,30.0,240.31,240.26,20.0]
[1732563016366,30.0,240.31,240.21,11.27823925]
[1732563016942,30.0,240.31,240.18,4.35227046]
[1732563017137,30.0,240.31,240.2,11.27823925]
[1732563017965,30.0,240.31,240.25,11.27823925]
[1732563018962,30.0,240.31,240.27,11.27823925]
[1732563019352,15.7636,240.39,240.27,11.27823925]
[1732563020065,15.7636,240.39,240.25,11.27823925]
[1732563020748,15.7636,240.39,240.21,11.27823925]
[1732563020962,20.0,240.36,240.23,11.27823925]
[1732563021873,30.0,240.3,240.23,11.27823925]
[1732563022042,30.0,240.3,240.27,11.27823925]
[1732563024464,30.0,240.3,240.29,11.27823925]
[1732563025052,30.0,240.3,240.27,15.44003925]
[1732563025776,30.0,240.3,240.27,21.19644915]
[1732563025976,15.7636,240.39,240.29,11.27823925]
[1732563026580,15.7636,240.39,240.29,15.43983925]
[1732563027077,15.7636,240.39,240.32,11.27823925]
[1732563027267,15.7636,240.39,240.34,11.27823925]
[1732563027860,15.2045,240.44,240.34,11.27823925]
[1732563028068,15.2045,240.44,240.32,15.43913925]
[1732563029374,15.2045,240.44,240.3,31.27823925]
[1732563029576,15.2045,240.44,240.3,11.27823925]
[1732563029978,15.2045,240.44,240.3,15.43963925]
[1732563030480,15.2045,240.44,240.28,11.27823925]
[1732563031577,15.2045,240.44,240.28,15.43993925]
[1732563031878,15.2045,240.44,240.26,11.27823925]
[1732563032377,15.2045,240.44,240.33,11.27823925]
[1732563034052,15.2045,240.44,240.33,15.43913925]
[1732563034257,15.2045,240.44,240.31,11.27823925]
[1732563035385,15.2045,240.44,240.32,4.1611]
[1732563035753,15.2045,240.44,240.29,31.27823925]
[1732563035958,15.2045,240.44,240.29,11.27823925]
[1732563036882,15.2045,240.44,240.29,15.43963925]
[1732563038464,15.2045,240.44,240.29,11.27823925]
[1732563038665,15.2045,240.44,240.29,15.43983925]
[1732563038980,15.2045,240.44,240.31,11.27823925]
[1732563039563,15.2045,240.44,240.29,15.43983925]
[1732563041185,15.2045,240.44,240.28,4.1618]
[1732563041761,15.2045,240.44,240.27,15.63050971]
[1732563041962,25.2045,240.44,240.27,15.63050971]
[1732563042169,25.2045,240.44,240.27,4.35227046]
[1732563042383,35.894,240.4,240.27,4.35227046]
[1732563042596,35.894,240.4,240.23,11.27823925]
[1732563042889,35.894,240.4,240.24,11.27823925]
[1732563043262,35.894,240.4,240.25,11.27823925]
[1732563043263,15.894,240.4,240.25,11.27823925]
[1732563044370,15.894,240.4,240.25,15.44043925]
[1732563044869,15.894,240.4,240.23,15.44083925]
[1732563045888,15.894,240.4,240.26,11.27823925]
[1732563046384,15.894,240.4,240.3,11.27823925]
[1732563047484,15.894,240.4,240.3,4.1613]
[1732563048427,15.894,240.4,240.28,11.27823925]
[1732563048690,15.894,240.4,240.29,4.1616]
[1732563052587,15.894,240.4,240.33,11.27823925]
[1732563053586,15.894,240.4,240.33,15.43893925]
[1732563053971,15.7018682,240.45,240.33,15.43893925]
[1732563055081,15.7018682,240.45,240.34,11.27823925]
[1732563055673,15.7018682,240.45,240.35,11.27823925]
[1732563056794,15.7018682,240.45,240.36,4.1604]
[1732563057699,15.7018682,240.45,240.35,15.43873925]
[1732563058771,15.7018682,240.45,240.35,4.1605]
[1732563060272,15.7018682,240.45,240.38,11.27823925]
[1732563060603,15.7018682,240.45,240.39,11.27823925]
[1732563060809,15.7018682,240.45,240.38,17.19573359]
[1732563061506,15.7018682,240.45,240.39,17.19573359]
[1732563061892,15.7018682,240.45,240.4,11.27823925]
[1732563062098,15.7018682,240.45,240.4,6.11971656]
[1732563062401,0.4764682,240.45,240.42,11.27823925]
[1732563062586,0.4764682,240.45,240.44,11.27823925]
[1732563062791,0.4764682,240.45,240.44,17.39795581]
[1732563063290,0.4764682,240.45,240.44,21.92355961]
[1732563063494,0.4764682,240.45,240.44,26.08255961]
[1732563064808,0.4764682,240.45,240.44,49.98493361]
[1732563064983,16.5275,240.55,240.45,23.902374]
[1732563065178,16.5275,240.55,240.5,11.27823925]
[1732563065591,16.5275,240.55,240.5,15.80384305]
[1732563065806,21.7035,240.6,240.51,11.27823925]
[1732563066009,21.7035,240.6,240.51,22.13300406]
[1732563066188,15.2597,240.6,240.52,11.27823925]
[1732563066600,15.2597,240.6,240.52,6.32916101]
[1732563067109,6.5938,240.66,240.53,11.27823925]
[1732563067310,6.5938,240.66,240.54,11.27823925]
[1732563067486,6.5938,240.66,240.56,0.12549]
[1732563067689,15.2597,240.67,240.57,17.78795581]
[1732563067995,15.2597,240.67,240.6,11.27823925]
[1732563068211,15.2597,240.67,240.61,17.78795581]
[1732563068503,15.2597,240.67,240.61,6.50971656]
[1732563068704,0.4764682,240.69,240.61,6.50971656]
[1732563068888,0.4764682,240.69,240.63,11.27823925]
[1732563069089,0.4764682,240.69,240.65,11.40372925]
[1732563069821,0.4764682,240.69,240.65,17.91344581]
[1732563070307,0.4764682,240.69,240.66,11.27823925]
[1732563070517,0.4764682,240.69,240.65,22.06874581]
[1732563071386,0.4764682,240.69,240.65,17.91344581]
[1732563071617,0.4764682,240.69,240.64,4.69171491]
[1732563071798,0.4764682,240.69,240.58,4.69171491]
[1732563072111,0.4764682,240.69,240.48,16.3723]
[1732563072112,15.0999,240.67,240.51,4.1578]
[1732563072283,10.0,240.65,240.43,10.7505]
[1732563072483,16.4957,240.68,240.43,10.7505]
[1732563072484,15.0999,240.59,240.43,4.1591]
[1732563072714,15.0999,240.59,240.42,11.27823925]
[1732563072894,25.0999,240.59,240.39,11.27823925]
[1732563073204,6.4957,240.58,240.42,11.27823925]
[1732563073416,6.4957,240.58,240.43,6.50971656]
[1732563073714,6.4957,240.58,240.44,11.27823925]
[1732563073908,6.4957,240.58,240.47,11.27823925]
[1732563074088,6.4957,240.58,240.42,4.1592]
[1732563074089,6.4957,240.58,240.42,11.27823925]
[1732563074291,6.4957,240.58,240.43,11.27823925]
[1732563074511,6.4957,240.58,240.45,11.27823925]
[1732563074890,6.4957,240.58,240.44,11.27823925]
[1732563076319,6.4957,240.58,240.42,11.27823925]
[1732563076495,6.4957,240.58,240.4,20.0]
[1732563076496,6.4957,240.58,240.4,11.27823925]
[1732563076692,16.4957,240.58,240.37,10.14931101]
[1732563076909,16.4957,240.58,240.33,14.33904824]
[1732563076910,10.0,240.53,240.34,11.27823925]
[1732563077210,16.5532,240.52,240.34,11.27823925]
[1732563077394,16.5532,240.52,240.39,11.27823925]
[1732563077593,16.5532,240.52,240.32,14.5638]
[1732563077594,16.5532,240.52,240.4,11.27823925]
[1732563078097,16.5532,240.52,240.38,11.27823925]
[1732563078297,16.5532,240.52,240.36,11.27823925]
[1732563078999,16.5532,240.52,240.4,11.27823925]
[1732563079202,16.5532,240.52,240.36,4.1603]
[1732563079203,16.5532,240.52,240.43,0.12549]
[1732563079515,16.5532,240.52,240.44,11.27823925]
[1732563080021,21.9862,240.58,240.44,11.27823925]
[1732563080616,21.9862,240.58,240.44,15.43723925]
[1732563081021,21.9862,240.58,240.42,15.43743925]
[1732563081209,33.776884,240.57,240.38,11.27823925]
[1732563081724,23.776884,240.57,240.4,11.27823925]
[1732563082230,10.0,240.56,240.4,11.27823925]
[1732563082393,23.776884,240.57,240.4,11.27823925]
[1732563082599,31.9862,240.58,240.4,11.27823925]
[1732563082912,31.9862,240.58,240.35,5.98921101]
[1732563082913,23.776884,240.55,240.38,11.27823925]
[1732563083211,23.776884,240.55,240.36,4.1602]
[1732563083212,10.0,240.52,240.36,11.27823925]
[1732563083421,6.2534,240.51,240.34,15.43883925]
[1732563084520,35.8411,240.45,240.28,11.27823925]
[1732563084825,23.776884,240.44,240.28,11.27823925]
[1732563085124,23.776884,240.42,240.26,11.27823925]
[1732563085724,6.2093,240.43,240.28,11.27823925]
[1732563086422,6.2093,240.43,240.26,11.27823925]
[1732563087721,6.2093,240.43,240.27,4.1619]
[1732563088415,6.2093,240.43,240.27,22.12823746]
[1732563088618,16.2093,240.43,240.24,20.0]
[1732563088923,30.0,240.4,240.22,17.96633746]
[1732563089314,30.0,240.4,240.27,17.96633746]
[1732563089531,30.0,240.4,240.28,17.96633746]
[1732563089822,30.0,240.38,240.34,17.96633746]
[1732563090415,30.0,240.38,240.24,22.75889847]
[1732563090416,30.0,240.38,240.32,17.96633746]
[1732563090806,30.0,240.38,240.33,4.1609]
[1732563091135,30.0,240.38,240.25,4.1623]
[1732563093225,15.5277,240.37,240.25,17.96633746]
[1732563093458,30.0,240.36,240.25,17.96633746]
[1732563093629,27.89952573,240.36,240.25,17.96633746]
[1732563093924,25.79905146,240.36,240.25,17.96633746]
[1732563094136,25.79905146,240.36,240.23,22.12893746]
[1732563094302,25.79905146,240.36,240.21,4.1629]
[1732563094501,25.79905146,240.36,240.25,17.96633746]
[1732563094710,25.79905146,240.36,240.27,17.96633746]
[1732563094931,25.79905146,240.36,240.26,17.96633746]
[1732563095137,15.5277,240.37,240.21,4.1629]
[1732563095138,15.5277,240.37,240.31,17.96633746]
[1732563095312,15.5277,240.37,240.32,17.96633746]
[1732563095618,15.5277,240.37,240.24,17.96633746]
[1732563095619,15.5277,240.37,240.3,17.96633746]
[1732563096203,15.5277,240.37,240.31,4.1612]
[1732563096426,15.5277,240.37,240.32,17.96633746]
[1732563096923,15.7657,240.43,240.35,37.96633746]
[1732563097326,15.7657,240.43,240.35,20.0]
[1732563097526,15.7657,240.43,240.34,17.96633746]
[1732563097913,6.4804,240.48,240.41,17.96633746]
[1732563098109,6.4804,240.48,240.36,0.12549]
[1732563098110,16.4033,240.49,240.45,17.96633746]
[1732563098514,6.1174,240.55,240.47,17.96633746]
[1732563098814,16.4033,240.57,240.5,17.96633746]
[1732563100320,16.4033,240.57,240.5,4.1579]
[1732563101447,16.4033,240.57,240.48,17.96633746]
[1732563101625,16.4033,240.57,240.44,17.96633746]
[1732563101826,26.4033,240.57,240.4,17.96633746]
[1732563102018,26.4033,240.57,240.27,10.0]
[1732563102019,20.0,240.52,240.36,22.12673746]
[1732563102522,30.042584,240.51,240.34,22.12693746]
[1732563102731,26.3913,240.5,240.34,17.96633746]
[1732563103038,23.776884,240.47,240.32,22.12733746]
[1732563103238,23.776884,240.49,240.32,22.12733746]
[1732563103459,23.776884,240.49,240.35,17.96633746]
[1732563103643,16.3913,240.5,240.41,17.96633746]
[1732563103944,16.3913,240.5,240.41,22.12573746]
[1732563104725,16.3913,240.5,240.39,17.96633746]
[1732563104923,16.3913,240.5,240.35,17.96633746]
[1732563105130,23.776884,240.49,240.32,22.12743746]
[1732563106150,23.776884,240.49,240.34,22.12693746]
[1732563106325,23.776884,240.49,240.34,4.1606]
[1732563106522,10.0,240.48,240.32,22.12723746]
[1732563106853,20.0,240.44,240.3,17.96633746]
[1732563107046,20.0,240.43,240.28,22.12813746]
[1732563107728,20.0,240.44,240.3,17.96633746]
[1732563108040,20.0,240.43,240.3,22.12763746]
[1732563108346,20.0,240.43,240.28,17.96633746]
[1732563108552,20.0,240.43,240.23,4.1626]
[1732563108731,20.0,240.44,240.3,17.96633746]
[1732563108935,20.0,240.42,240.28,17.96633746]
[1732563109842,23.776884,240.41,240.26,17.96633746]
[1732563110154,6.1227,240.4,240.26,17.96633746]
[1732563110926,6.1227,240.4,240.28,17.96633746]
[1732563111127,6.1227,240.4,240.32,17.96633746]
[1732563111949,6.1227,240.4,240.28,17.96633746]
[1732563112129,6.1227,240.4,240.25,4.1623]
[1732563112829,33.776884,240.39,240.22,17.96633746]
[1732563113036,6.1227,240.4,240.28,17.96633746]
[1732563113653,6.1227,240.4,240.3,17.96633746]
[1732563113854,6.1227,240.4,240.28,17.96633746]
[1732563114233,6.1227,240.4,240.28,22.12803746]
[1732563115752,6.1227,240.4,240.28,17.96633746]
[1732563115988,6.1227,240.4,240.28,22.12803746]
[1732563116339,6.1227,240.4,240.32,17.96633746]
[1732563116549,15.6854,240.41,240.36,17.96633746]
[1732563116850,15.6854,240.41,240.34,17.96633746]
[1732563117357,15.6854,240.41,240.35,4.1605]
[1732563117542,15.6854,240.41,240.34,4.1607]
[1732563117861,15.6854,240.41,240.36,17.96633746]
[1732563118439,15.6854,240.41,240.34,22.12703746]
[1732563119150,15.6854,240.41,240.36,17.96633746]
[1732563119339,15.6854,240.41,240.34,17.96633746]
[1732563119940,15.6854,240.41,240.32,17.96633746]
[1732563120341,15.6854,240.41,240.3,22.12773746]
[1732563120549,15.6854,240.41,240.3,4.1614]
[1732563120760,15.6854,240.41,240.3,22.12773746]
[1732563121263,15.6854,240.41,240.32,17.96633746]
[1732563121560,15.6854,240.41,240.34,17.96633746]
[1732563121861,15.6854,240.41,240.29,20.0]
[1732563121862,15.6854,240.41,240.36,17.96633746]
[1732563122066,6.351,240.46,240.38,17.96633746]
[1732563122649,6.351,240.46,240.4,17.96633746]
[1732563123558,6.351,240.46,240.4,22.12593746]
[1732563123968,6.351,240.46,240.34,17.96633746]
[1732563124158,6.351,240.46,240.3,28.36973746]
[1732563124747,6.351,240.46,240.34,17.96633746]
[1732563124947,6.351,240.46,240.38,17.96633746]
[1732563125162,6.351,240.46,240.39,17.96633746]
[1732563125365,6.351,240.46,240.37,17.96633746]
[1732563125577,6.351,240.46,240.38,4.16]
[1732563126250,6.351,240.46,240.35,17.96633746]
[1732563126661,6.351,240.46,240.33,14.5632]
[1732563126866,16.0633,240.48,240.41,17.96633746]
[1732563127475,6.1415,240.52,240.45,17.96633746]
[1732563127651,16.0444,240.54,240.45,17.96633746]
[1732563128165,16.0444,240.54,240.47,17.96633746]
[1732563128365,16.0444,240.54,240.49,17.96633746]
[1732563129074,16.0444,240.54,240.47,17.96633746]
[1732563129571,16.0444,240.54,240.41,17.96633746]
[1732563129754,16.0444,240.54,240.42,20.0]
[1732563130145,16.0444,240.54,240.44,17.96633746]
[1732563130766,16.0444,240.54,240.42,17.96633746]
[1732563130991,16.0444,240.54,240.4,17.96633746]
[1732563131172,16.0444,240.54,240.41,22.12583746]
[1732563131677,16.0444,240.54,240.39,10.3997]
[1732563131678,23.776884,240.53,240.39,4.1597]
[1732563132452,6.1786,240.49,240.37,4.1601]
[1732563132653,15.6368,240.48,240.34,4.1607]
[1732563133153,23.776884,240.47,240.31,17.96633746]
[1732563134265,23.776884,240.47,240.32,4.1611]
[1732563134776,23.776884,240.47,240.33,17.96633746]
[1732563135372,15.6368,240.48,240.36,17.96633746]
[1732563135580,15.6368,240.48,240.38,17.96633746]
[1732563136453,15.6368,240.48,240.39,4.1599]
[1732563137364,15.6368,240.48,240.37,4.16]
[1732563137864,23.776884,240.47,240.32,17.96633746]
[1732563138059,20.0,240.44,240.28,17.96633746]
[1732563138264,16.5015,240.42,240.26,17.96633746]
[1732563138459,23.776884,240.41,240.26,17.96633746]
[1732563138657,23.776884,240.41,240.27,4.1619]
[1732563138857,16.5015,240.42,240.28,17.96633746]
[1732563139157,16.5015,240.42,240.27,14.5668]
[1732563139158,16.5015,240.42,240.3,17.96633746]
[1732563139367,16.5015,240.42,240.28,17.96633746]
[1732563140273,16.5015,240.42,240.29,4.1616]
[1732563141056,23.776884,240.41,240.27,4.1618]
[1732563141283,16.5015,240.42,240.27,4.1618]
[1732563141284,6.6477,240.4,240.27,4.1618]
[1732563141486,23.776884,240.39,240.22,17.96633746]
[1732563141670,16.397,240.38,240.23,17.96633746]
[1732563142273,23.776884,240.37,240.21,22.12923746]
[1732563142470,23.776884,240.37,240.19,17.96633746]
[1732563142471,15.3361,240.33,240.19,17.96633746]
[1732563142785,15.3361,240.33,240.17,17.96633746]
[1732563143082,15.3361,240.33,240.15,10.4099]
[1732563143083,15.3361,240.33,240.19,17.96633746]
[1732563143677,15.3361,240.33,240.2,4.1631]
[1732563144480,15.3361,240.33,240.19,22.12963746]
[1732563145185,15.3361,240.33,240.17,4.1637]
[1732563145186,6.2913,240.31,240.17,4.1637]
[1732563145362,6.2913,240.31,240.11,16.7325]
[1732563145363,23.776884,240.3,240.13,17.96633746]
[1732563146073,23.776884,240.3,240.15,17.96633746]
[1732563146465,23.776884,240.3,240.15,4.1639]
[1732563146689,23.776884,240.3,240.13,17.96633746]
[1732563146893,20.0,240.27,240.11,17.96633746]
[1732563147063,23.776884,240.3,240.13,17.96633746]
[1732563147775,6.2913,240.31,240.21,17.96633746]
[1732563147981,6.2913,240.31,240.22,17.96633746]
[1732563148581,6.2913,240.31,240.23,4.1626]